bitfinex-derivatives/quotes_ETHF0:USTF0_20220108
["timestamp","ask_amount","ask_price","bid_price","bid_amount"]
[1641638811803,0.77242262,3225.3,3224.9,0.99424904]
[1641638813606,0.77242262,3225.3,3224.9,0.78971443]
[1641638813806,0.77242262,3225.3,3224.8,2.79450443]
[1641638816005,0.264788,3225.2,3224.8,0.78971443]
[1641638816206,1.5,3225.1,3224.8,0.78971443]
[1641638816407,3.50479,3225.1,3224.8,0.78971443]
[1641638816607,0.264788,3225.0,3224.8,0.78971443]
[1641638816807,0.77242262,3224.9,3224.4,0.78971443]
[1641638817206,0.264788,3224.8,3224.4,0.78971443]
[1641638817606,0.640787,3224.7,3224.4,0.78971443]
[1641638817806,0.264788,3224.6,3224.4,0.78971443]
[1641638818009,1.048188,3224.6,3224.4,0.78971443]
[1641638818407,1.82061062,3224.6,3224.1,2.79450443]
[1641638819609,0.77242262,3224.5,3224.1,2.00479]
[1641638819808,0.264788,3224.4,3224.1,2.00479]
[1641638820810,1.03721062,3224.4,3224.1,2.00479]
[1641638823711,1.5,3224.3,3223.9,0.78971443]
[1641638823913,1.5,3224.0,3223.4,1.15867919]
[1641638824111,0.905575,3223.9,3223.4,1.15867919]
[1641638824311,2.00479,3223.8,3223.4,1.15867919]
[1641638824511,0.264788,3223.7,3223.4,1.15867919]
[1641638825715,0.264788,3223.7,3223.0,3.95816793]
[1641638825913,0.264788,3223.7,3223.1,0.22669349]
[1641638828015,0.264788,3223.7,3223.1,0.86748049]
[1641638828217,0.264788,3223.7,3223.1,0.22669349]
[1641638829016,0.264788,3223.7,3223.2,0.22669349]
[1641638829919,0.264788,3223.7,3223.1,0.22669349]
[1641638830119,0.264788,3223.7,3223.1,0.86748049]
[1641638830721,0.264788,3223.7,3223.2,0.22669349]
[1641638831721,1.5,3223.3,3222.8,1.55802243]
[1641638831921,1.5,3223.0,3222.7,2.18936449]
[1641638832121,2.3376,3223.0,3222.7,2.18936449]
[1641638832321,2.3376,3223.0,3222.4,1.95337793]
[1641638832521,2.3376,3223.0,3221.9,3.25559974]
[1641638832522,1.5,3222.6,3222.0,2.00479]
[1641638832722,6.00479,3222.8,3222.0,2.00479]
[1641638832923,4.965397,3222.5,3222.0,2.00479]
[1641638833123,4.965243,3222.7,3222.0,2.00479]
[1641638833325,1.5,3222.1,3221.9,3.25559974]
[1641638833522,2.2379,3222.1,3221.7,3.58115972]
[1641638833722,4.965859,3222.0,3221.5,2.63205978]
[1641638833922,0.905575,3221.9,3221.5,2.63205978]
[1641638834422,2.00479,3221.6,3221.5,2.63205978]
[1641638834624,2.269578,3221.6,3221.5,2.63205978]
[1641638835022,2.269578,3221.6,3221.3,3.25559974]
[1641638835424,2.269578,3221.6,3220.7,2.00479]
[1641638836423,3.769578,3221.6,3220.7,2.00479]
[1641638836623,3.769578,3221.6,3220.2,1.14125112]
[1641638836823,4.96717,3221.5,3220.1,1.5]
[1641638837527,8.96717,3221.5,3220.1,1.5]
[1641638837824,34.16921413,3220.8,3220.1,1.5]
[1641638838025,0.264788,3220.7,3220.3,0.640787]
[1641638839724,32.32085073,3220.8,3220.3,0.640787]
[1641638839925,32.32085073,3220.8,3220.4,2.269578]
[1641638841229,0.264788,3220.7,3220.4,2.00479]
[1641638841429,1.024488,3220.7,3220.4,2.00479]
[1641638843330,0.264788,3220.7,3220.4,2.00479]
[1641638843734,2.00479,3221.1,3220.6,1.5]
[1641638843931,2.00479,3221.1,3220.6,2.3726]
[1641638844132,2.00479,3221.1,3220.7,0.264788]
[1641638847236,2.269578,3221.1,3220.7,0.264788]
[1641638847440,2.269578,3221.1,3220.6,1.38105501]
[1641638848336,2.269578,3221.1,3220.7,0.264788]
[1641638848547,2.00479,3221.1,3220.7,0.980788]
[1641638848944,2.269578,3221.1,3220.7,0.980788]
[1641638849140,2.00479,3221.1,3220.7,0.980788]
[1641638849741,2.00479,3221.1,3220.7,0.264788]
[1641638851839,0.264788,3221.0,3220.6,1.38105501]
[1641638852948,4.0,3220.9,3220.0,2.00479]
[1641638853146,1.5,3220.7,3219.8,0.78682016]
[1641638853644,1.5,3219.9,3219.3,1.31105718]
[1641638853845,1.5,3219.6,3219.3,1.31105718]
[1641638854246,0.264788,3219.5,3219.3,1.31105718]
[1641638854445,3.50479,3219.4,3218.3,3.25559974]
[1641638854646,1.5,3218.8,3218.3,3.25559974]
[1641638854845,1.764788,3218.7,3218.3,3.25559974]
[1641638855045,6.73597,3218.7,3218.3,3.25559974]
[1641638855245,5.23597,3218.7,3218.3,3.25559974]
[1641638855646,6.73597,3218.7,3217.2,68.43423639]
[1641638855845,0.640787,3218.6,3217.5,0.53481928]
[1641638856046,4.971182,3218.7,3218.1,5.72194672]
[1641638856246,2.00479,3219.4,3218.1,2.764287]
[1641638856548,2.00479,3219.4,3218.3,2.00479]
[1641638856747,2.196361,3219.3,3218.3,2.00479]
[1641638856946,7.16708,3219.3,3218.3,2.00479]
[1641638857548,4.970719,3219.3,3218.3,3.50479]
[1641638857747,4.970719,3219.3,3214.9,8.0]
[1641638857946,4.970719,3219.3,3215.5,1.00376485]
[1641638857947,1.5,3217.1,3215.5,1.00376485]
[1641638858148,0.002,3216.1,3215.5,1.00376485]
[1641638858349,0.905575,3216.0,3215.4,3.26140393]
[1641638858549,4.00958,3215.6,3215.4,3.26140393]
[1641638858748,0.264788,3215.5,3215.4,3.26140393]
[1641638858948,2.451696,3215.5,3215.4,3.26140393]
[1641638859150,3.951696,3215.5,3215.4,2.50260393]
[1641638859450,3.951696,3215.5,3214.7,3.91476982]
[1641638859649,1.5,3214.9,3214.7,3.91476982]
[1641638859849,0.264788,3214.8,3212.6,1.5]
[1641638860051,7.442811,3214.8,3212.5,0.92875105]
[1641638860251,7.442811,3214.8,3213.6,1.5]
[1641638860452,5.241769,3214.8,3214.0,1.5]
[1641638860651,0.002,3216.1,3214.1,0.264788]
[1641638860852,0.002,3216.1,3214.2,13.29]
[1641638861254,1.5,3215.4,3214.2,13.29]
[1641638861452,0.9234,3215.4,3214.2,13.29]
[1641638861957,0.9234,3215.4,3214.1,0.88278702]
[1641638862152,3.002,3215.3,3213.6,1.5]
[1641638862355,1.5,3215.2,3213.4,1.5]
[1641638862556,2.00479,3214.2,3213.4,1.5]
[1641638862754,2.00479,3214.2,3213.7,1.5]
[1641638862959,2.00479,3214.2,3213.8,13.29]
[1641638863159,2.1492,3215.5,3214.0,13.29]
[1641638863360,2.1492,3215.5,3214.0,14.2146]
[1641638863559,2.171373,3215.4,3214.0,14.2146]
[1641638863759,7.148431,3215.4,3214.0,14.2146]
[1641638863959,7.148431,3215.4,3214.1,0.78566954]
[1641638864159,7.148431,3215.4,3214.1,14.07366954]
[1641638864361,7.148431,3215.4,3214.1,0.78366954]
[1641638864561,2.00479,3214.5,3214.1,0.78366954]
[1641638864760,2.00479,3214.5,3214.2,0.264788]
[1641638865160,2.00479,3214.5,3214.3,13.29]
[1641638865360,2.00479,3214.5,3214.4,0.264788]
[1641638865961,2.00479,3214.5,3214.2,0.264788]
[1641638866159,2.00479,3214.5,3214.1,14.07366954]
[1641638866560,2.645577,3214.8,3214.2,0.264788]
[1641638866859,2.00479,3214.8,3214.2,0.264788]
[1641638867261,1.5,3215.6,3214.3,13.29]
[1641638867462,1.5,3215.6,3214.5,13.29]
[1641638867661,1.5,3216.9,3214.5,21.29]
[1641638867862,32.5068,3217.2,3215.0,13.29]
[1641638868062,34.0068,3217.2,3215.4,13.29]
[1641638868263,1.5,3217.2,3215.4,13.29]
[1641638868463,2.00479,3216.7,3215.9,2.00479]
[1641638868664,0.905575,3216.6,3216.0,0.264788]
[1641638869264,2.00479,3216.7,3216.0,0.264788]
[1641638869464,2.00479,3216.7,3216.1,1.04219617]
[1641638869665,2.00479,3216.7,3216.2,0.264788]
[1641638869865,2.00479,3216.7,3216.3,13.29]
[1641638870069,65.5807,3218.8,3216.3,14.79]
[1641638870265,65.5807,3218.8,3216.3,12.67342086]
[1641638870469,2.00479,3217.5,3216.8,11.17342086]
[1641638870666,2.00479,3217.5,3216.8,0.7835]
[1641638870667,0.905575,3217.4,3216.8,0.7835]
[1641638870867,0.264788,3217.4,3216.8,1.048288]
[1641638871066,0.264788,3217.4,3216.9,13.29]
[1641638871471,0.264788,3217.4,3217.0,0.91459626]
[1641638871768,2.00479,3217.5,3217.2,13.29]
[1641638871969,2.00479,3217.5,3217.0,0.91459626]
[1641638872171,2.269578,3217.5,3217.0,0.91459626]
[1641638872568,2.269578,3217.5,3217.0,1.17938426]
[1641638873269,1.64188119,3217.0,3216.7,15.29479]
[1641638873769,2.269578,3217.5,3216.7,15.29479]
[1641638873969,2.269578,3217.5,3216.7,2.00479]
[1641638874369,2.269578,3217.5,3216.7,15.29479]
[1641638874570,2.269578,3217.5,3216.7,2.00479]
[1641638874772,2.269578,3217.5,3216.7,2.79849468]
[1641638874971,2.00479,3217.5,3216.7,2.79849468]
[1641638875171,0.905575,3217.4,3216.7,2.79849468]
[1641638875371,2.00479,3217.5,3216.7,2.79849468]
[1641638875771,0.264788,3217.4,3216.7,2.79849468]
[1641638876172,2.00479,3217.5,3216.7,16.08849468]
[1641638876372,2.00479,3217.5,3217.0,13.29]
[1641638877572,2.00479,3217.8,3217.2,1.5]
[1641638877772,2.00479,3217.8,3217.3,13.29]
[1641638878572,2.00479,3217.8,3217.5,13.29]
[1641638878974,2.00479,3218.4,3217.5,14.2078]
[1641638880575,2.00479,3218.4,3217.4,2.00479]
[1641638880773,1.5,3218.2,3217.2,1.27530738]
[1641638880975,2.61389,3218.4,3216.0,0.07768]
[1641638881176,1.5,3217.6,3215.6,0.0777]
[1641638881376,2.2536,3217.6,3215.6,0.0777]
[1641638881576,4.974196,3217.5,3215.7,1.40621203]
[1641638881775,4.974196,3217.5,3215.8,13.29]
[1641638882177,0.6492,3217.4,3215.8,13.29]
[1641638882384,1.5,3216.9,3215.7,2.53289358]
[1641638882578,2.00479,3216.6,3215.9,2.00479]
[1641638882777,0.905575,3216.5,3215.9,2.00479]
[1641638883980,2.00479,3216.6,3215.9,2.00479]
[1641638883981,2.69929,3216.9,3215.9,2.00479]
[1641638884580,2.69929,3216.9,3216.3,2.00479]
[1641638884778,0.905575,3216.8,3215.9,2.00479]
[1641638885001,1.5,3216.3,3215.9,2.00479]
[1641638885180,0.264788,3216.2,3215.9,2.00479]
[1641638885379,1.181088,3216.2,3215.9,2.00479]
[1641638886181,1.181088,3216.2,3214.8,13.29]
[1641638886484,2.00479,3216.1,3215.3,2.00479]
[1641638886681,0.905575,3216.0,3215.3,2.00479]
[1641638887483,0.905575,3216.0,3215.0,2.00479]
[1641638887682,0.905575,3216.0,3215.1,13.29]
[1641638887882,0.905575,3216.0,3215.0,2.00479]
[1641638888081,1.5,3215.8,3215.0,2.00479]
[1641638888381,1.5,3215.8,3213.8,35.8383]
[1641638888382,0.264788,3215.7,3213.8,35.8383]
[1641638888582,2.00479,3215.5,3214.7,2.00479]
[1641638888983,0.264788,3215.4,3214.7,2.00479]
[1641638889182,0.264788,3215.4,3214.8,13.29]
[1641638889381,0.264788,3215.4,3214.7,2.00479]
[1641638889582,0.640787,3215.3,3214.7,2.00479]
[1641638889883,0.264788,3215.2,3214.7,2.00479]
[1641638891083,2.00479,3215.5,3214.7,2.00479]
[1641638891284,0.87881589,3217.4,3214.7,15.29479]
[1641638891484,4.32430478,3219.7,3214.9,13.29]
[1641638891784,0.6492,3216.4,3214.9,13.29]
[1641638891984,0.6492,3216.4,3214.7,2.00479]
[1641638892183,2.1492,3216.4,3214.7,2.00479]
[1641638892384,2.1492,3216.4,3214.7,3.03137913]
[1641638892587,2.00479,3216.2,3215.5,2.00479]
[1641638892785,0.905575,3216.1,3215.5,2.00479]
[1641638894290,1.5,3216.0,3214.7,3.03137913]
[1641638894687,1.5,3215.1,3213.2,0.07774]
[1641638894892,1.5,3214.9,3213.1,32.94665]
[1641638895090,1.5,3214.9,3213.1,34.3689]
[1641638895287,1.5,3214.9,3213.2,14.4790057]
[1641638895487,1.5,3214.3,3213.2,14.4790057]
[1641638895687,1.5,3214.3,3212.3,31.348]
[1641638895688,26.13822523,3213.7,3212.4,0.07778]
[1641638896088,26.13822523,3213.7,3211.6,31.4798]
[1641638896089,26.13822523,3213.7,3211.7,0.07779]
[1641638896388,27.63822523,3213.7,3211.4,13.36781]
[1641638896589,2.00479,3212.4,3211.8,13.29]
[1641638896789,0.905575,3212.3,3211.7,2.00479]
[1641638896987,0.905575,3212.3,3211.3,2.00479]
[1641638897187,0.905575,3212.3,3211.2,25.6424122]
[1641638897390,0.905575,3212.3,3211.3,13.29]
[1641638898590,2.00479,3212.0,3211.3,13.29]
[1641638898990,2.910365,3212.0,3211.3,13.29]
[1641638899796,2.00479,3212.0,3211.3,13.29]
[1641638899994,2.00479,3212.4,3211.3,13.29]
[1641638900201,31.7372,3213.6,3211.3,15.6557]
[1641638900494,1.5,3213.5,3211.3,14.1557]
[1641638900693,2.00479,3212.4,3211.8,13.29]
[1641638900897,0.264788,3212.3,3211.0,0.10881]
[1641638901094,0.264788,3212.3,3211.0,0.031]
[1641638901494,2.00479,3212.4,3211.0,0.031]
[1641638901895,2.00479,3212.4,3211.0,13.321]
[1641638902395,4.15399,3212.4,3211.0,13.321]
[1641638902696,2.00479,3211.4,3211.0,0.031]
[1641638902897,0.905575,3211.3,3211.0,0.031]
[1641638903494,2.405575,3211.3,3209.7,14.57010037]
[1641638903695,2.183712,3211.2,3209.7,14.57010037]
[1641638903894,7.167048,3211.2,3209.7,14.57010037]
[1641638904102,2.183712,3211.2,3209.7,13.29]
[1641638904595,2.00479,3210.2,3209.4,2.92813202]
[1641638904794,3.593665,3210.2,3209.0,2.00479]
[1641638905595,3.593665,3210.2,3208.5,1.344011]
[1641638905996,5.093665,3210.2,3208.5,1.344011]
[1641638906196,1.5,3210.0,3208.5,1.344011]
[1641638906397,0.264788,3209.9,3208.5,1.344011]
[1641638906596,2.00479,3209.3,3208.6,13.29]
[1641638906798,2.00479,3210.2,3208.7,14.79]
[1641638906998,2.00479,3210.2,3208.7,13.29]
[1641638907499,2.00479,3210.2,3209.1,1.2591616]
[1641638907699,2.00479,3210.2,3209.2,13.321]
[1641638908100,0.75163876,3212.4,3209.6,13.29]
[1641638908299,0.75163876,3212.4,3209.8,13.29]
[1641638908501,2.15769,3212.3,3210.0,13.29]
[1641638908700,2.00479,3211.9,3211.2,2.00479]
[1641638908900,0.905575,3211.8,3211.2,2.87069]
[1641638909900,0.264788,3211.8,3211.2,2.87069]
[1641638910301,2.00479,3211.9,3211.3,13.29]
[1641638910503,0.03,3213.1,3211.3,13.29]
[1641638910700,0.03,3213.1,3211.2,3.77558442]
[1641638910701,2.03479,3213.1,3212.3,2.00479]
[1641638910900,2.03479,3213.1,3212.3,2.61639]
[1641638910901,0.905575,3213.0,3212.3,2.61639]
[1641638911101,0.264788,3213.0,3212.3,2.61639]
[1641638911301,0.03,3213.1,3212.9,1.5]
[1641638911504,0.75163876,3214.1,3213.0,13.292]
[1641638911703,0.75163876,3214.1,3213.0,0.6911]
[1641638911902,0.75163876,3214.1,3213.0,13.9811]
[1641638912102,0.75163876,3214.6,3213.0,13.9811]
[1641638912503,0.75163876,3214.6,3213.1,12.28085567]
[1641638912707,2.00479,3214.5,3213.8,2.00479]
[1641638913004,2.00479,3214.5,3212.3,0.6116]
[1641638913005,28.59713063,3213.1,3212.1,0.07778]
[1641638913203,1.5,3212.5,3210.2,34.0802]
[1641638913402,8.4206239,3213.0,3209.8,23.90408059]
[1641638913602,28.59713063,3213.1,3211.1,8.0]
[1641638913802,31.3915,3213.9,3211.3,8.0]
[1641638914006,1.5,3213.8,3211.4,0.07781]
[1641638914203,3.669196,3213.8,3211.2,13.29]
[1641638914402,4.980389,3213.7,3211.2,14.41016287]
[1641638914602,2.00479,3212.4,3211.7,2.00479]
[1641638914803,0.264788,3212.3,3211.7,2.00479]
[1641638915002,0.640787,3212.2,3211.5,13.29]
[1641638915403,2.00479,3212.4,3211.7,13.29]
[1641638915603,2.00479,3212.8,3212.0,13.29]
[1641638915803,0.75163876,3214.4,3212.0,21.29]
[1641638916004,0.75163876,3214.4,3212.4,0.6492]
[1641638916203,0.75163876,3214.4,3212.8,13.29]
[1641638916407,0.75163876,3214.4,3213.0,13.29]
[1641638916607,0.75163876,3214.4,3213.4,2.00479]
[1641638916805,0.264788,3213.9,3213.4,2.00479]
[1641638917105,0.640787,3213.8,3213.4,2.00479]
[1641638917306,0.264788,3213.7,3213.4,2.00479]
[1641638917505,0.264788,3213.7,3213.5,1.107574]
[1641638918306,2.00479,3214.1,3213.5,1.107574]
[1641638918509,2.269578,3214.1,3213.5,1.107574]
[1641638918706,2.269578,3214.1,3213.5,14.397574]
[1641638918907,2.00479,3214.1,3213.5,14.397574]
[1641638919506,2.00479,3214.4,3213.5,14.397574]
[1641638919706,0.75163876,3215.2,3213.7,13.29]
[1641638919906,0.75163876,3215.2,3213.8,1.5]
[1641638920111,0.75163876,3215.2,3213.9,21.29]
[1641638920307,1.03510059,3215.5,3214.0,0.07777]
[1641638920308,1.78673935,3215.5,3214.0,0.07777]
[1641638920506,0.75163876,3215.5,3214.6,13.29]
[1641638920710,2.00479,3215.3,3214.6,15.29479]
[1641638920907,2.00479,3215.3,3214.6,2.00479]
[1641638921109,2.645577,3215.3,3214.6,2.00479]
[1641638921310,2.910365,3215.3,3214.6,2.00479]
[1641638921510,2.910365,3215.3,3214.7,0.99185397]
[1641638925009,2.910365,3215.3,3214.6,1.58187742]
[1641638925811,2.910365,3215.3,3214.7,1.18702985]
[1641638926812,2.00479,3214.9,3214.7,1.18702985]
[1641638927013,2.00479,3214.9,3214.0,1.5]
[1641638927014,0.264788,3214.8,3214.0,1.5]
[1641638927213,2.00479,3214.9,3214.1,1.5]
[1641638927412,2.00479,3214.9,3214.2,13.29]
[1641638928514,0.75163876,3216.4,3214.9,13.29]
[1641638928712,2.00479,3216.3,3215.6,2.00479]
[1641638928915,2.910365,3216.3,3215.6,2.78289]
[1641638929814,2.910365,3216.3,3215.6,0.7781]
[1641638930014,2.910365,3216.3,3215.3,2.00479]
[1641638930415,0.75163876,3216.9,3216.0,1.5]
[1641638930616,0.75163876,3216.9,3216.1,13.29]
[1641638930816,1.03510059,3216.9,3216.7,2.00479]
[1641638931019,1.03510059,3216.9,3216.7,14.96196826]
[1641638932017,1.03510059,3216.9,3216.7,15.96903859]
[1641638932422,1.5,3217.3,3215.5,0.0777]
[1641638932619,0.8606,3216.9,3214.8,0.07771]
[1641638932827,2.00479,3216.1,3215.3,2.00479]
[1641638933020,0.905575,3216.0,3215.3,2.00479]
[1641638933219,0.640787,3216.0,3215.3,2.00479]
[1641638933421,0.640787,3216.0,3215.4,13.29]
[1641638934018,0.905575,3216.0,3215.3,1.149615]
[1641638934225,0.640787,3216.0,3215.3,1.149615]
[1641638934627,0.264788,3215.9,3215.3,1.149615]
[1641638934829,2.00479,3215.6,3214.6,2.00479]
[1641638935028,2.00479,3215.6,3214.7,1.06128484]
[1641638935227,2.00479,3215.6,3213.3,34.00914]
[1641638935527,2.00479,3215.6,3212.7,1.5]
[1641638935528,32.56863992,3215.8,3213.8,13.29]
[1641638935728,34.0006,3215.9,3214.7,1.5]
[1641638935930,33.3082,3215.9,3214.7,1.5]
[1641638936232,0.640787,3216.0,3214.1,13.29]
[1641638936427,0.745,3215.9,3213.7,1.5]
[1641638936627,5.721594,3215.9,3213.8,13.29]
[1641638936826,2.00479,3215.2,3214.4,2.00479]
[1641638937026,0.905575,3215.1,3214.4,2.00479]
[1641638937427,0.905575,3215.1,3214.1,2.00479]
[1641638937629,0.905575,3215.1,3212.8,33.28317]
[1641638937928,0.905575,3215.1,3213.3,1.5]
[1641638938228,0.6492,3214.9,3213.0,1.1737005]
[1641638938429,4.97822,3215.0,3213.8,1.5]
[1641638938628,4.978297,3214.8,3213.8,1.5]
[1641638938830,0.640787,3215.1,3213.8,1.5]
[1641638938831,2.00479,3214.2,3213.8,1.5]
[1641638939831,2.76559,3214.2,3213.8,1.5]
[1641638942136,0.264788,3214.1,3213.4,3.50479]
[1641638942337,0.264788,3214.1,3213.4,2.00479]
[1641638942536,0.264788,3214.1,3213.7,1.5]
[1641638943137,2.76559,3214.2,3214.0,1.5]
[1641638943337,0.640787,3214.1,3213.5,1.5]
[1641638943537,0.640787,3214.1,3213.4,2.00479]
[1641638943737,0.640787,3214.1,3213.7,1.5]
[1641638946139,0.640787,3214.1,3213.4,3.50479]
[1641638946339,1.228887,3214.1,3213.4,2.00479]
[1641638946542,1.228887,3214.1,3213.4,3.50479]
[1641638946941,2.00479,3213.8,3213.4,3.50479]
[1641638947341,2.00479,3213.8,3213.4,2.00479]
[1641638948141,2.00479,3213.8,3212.9,1.5]
[1641638948541,0.264788,3213.7,3212.4,33.4177]
[1641638948741,0.264788,3213.7,3212.5,1.5]
[1641638949045,0.264788,3213.7,3212.7,1.41589417]
[1641638949240,4.00958,3213.8,3213.2,1.5]
[1641638949440,4.00958,3213.8,3213.1,15.29479]
[1641638949942,2.00479,3213.8,3213.7,1.5]
[1641638950142,0.640787,3214.1,3213.7,1.5]
[1641638950541,0.6492,3214.8,3213.1,15.29479]
[1641638950942,2.00479,3214.2,3213.5,2.00479]
[1641638951741,2.00479,3214.2,3213.7,1.5]
[1641638951942,2.00479,3214.6,3214.1,1.5]
[1641638952645,2.00479,3214.6,3214.2,1.5]
[1641638952843,2.00479,3214.6,3214.3,13.29]
[1641638953043,2.00479,3214.6,3214.5,1.5]
[1641638953243,2.00479,3214.6,3214.5,2.3833]
[1641638954343,2.00479,3214.6,3214.5,0.8833]
[1641638954545,2.00479,3214.6,3214.5,1.5]
[1641638954943,2.00479,3215.2,3214.5,1.5]
[1641638955144,2.00479,3215.2,3215.0,1.5]
[1641638955544,2.00479,3215.2,3215.0,14.79]
[1641638956144,2.00479,3215.2,3215.1,14.49242054]
[1641638956344,2.00479,3215.2,3215.1,15.27232054]
[1641638956944,0.76401069,3216.0,3215.1,15.27232054]
[1641638956945,2.00479,3215.8,3215.1,15.27232054]
[1641638957144,2.00479,3215.8,3215.7,1.5]
[1641638957345,2.00479,3215.8,3215.1,15.27232054]
[1641638957545,2.00479,3215.8,3215.1,14.0699]
[1641638957745,2.00479,3215.8,3215.2,1.5]
[1641638957945,2.00479,3215.8,3215.5,1.5]
[1641638958145,2.00479,3215.8,3215.4,1.3432868]
[1641638958345,2.00479,3215.8,3215.4,2.8432868]
[1641638958549,2.00479,3215.8,3215.7,1.5]
[1641638958746,0.76401069,3216.5,3215.7,1.5]
[1641638958946,2.00479,3216.3,3216.2,1.5]
[1641638959148,2.00479,3216.3,3216.2,2.1746]
[1641638959945,2.00479,3216.3,3216.2,0.6746]
[1641638960147,2.00479,3216.3,3216.2,3.62017345]
[1641638960345,2.00479,3216.3,3216.2,2.12017345]
[1641638961047,2.00479,3216.3,3215.0,13.29]
[1641638961248,2.00479,3216.3,3214.4,1.5051641]
[1641638961446,2.00479,3216.3,3214.9,1.5]
[1641638961850,2.00479,3216.3,3214.4,1.5051641]
[1641638962047,2.00479,3216.3,3214.8,13.29]
[1641638962346,2.00479,3216.3,3215.1,1.5]
[1641638962547,2.00479,3216.3,3213.9,33.34234]
[1641638962749,6.00479,3216.3,3214.1,1.5]
[1641638962947,2.00479,3214.8,3214.6,1.5]
[1641638963146,2.00479,3214.8,3214.1,2.00479]
[1641638963448,33.521,3216.1,3214.7,13.29]
[1641638963646,4.976207,3216.4,3215.0,1.5]
[1641638963847,0.76401069,3215.9,3215.0,1.5]
[1641638965051,2.00479,3215.6,3215.0,1.5]
[1641638965648,2.910365,3215.6,3215.0,1.5]
[1641638966348,2.910365,3215.6,3215.3,1.5]
[1641638966349,2.00479,3215.6,3215.3,1.5]
[1641638967150,2.00479,3215.6,3215.5,1.5]
[1641638967349,2.00479,3215.6,3215.2,1.5]
[1641638967549,2.645577,3215.6,3214.8,2.00479]
[1641638967749,2.645577,3215.6,3214.9,1.5]
[1641638968950,2.00479,3215.2,3214.9,1.5]
[1641638969449,2.269578,3215.2,3214.8,2.00479]
[1641638969653,2.971578,3215.2,3214.1,2.82809372]
[1641638969849,2.971578,3215.2,3214.1,3.50479]
[1641638970655,0.11,3214.9,3214.2,13.29]
[1641638971052,2.00479,3214.8,3214.2,13.29]
[1641638972452,0.11,3214.9,3214.7,1.5]
[1641638973054,0.11,3214.9,3214.8,2.00479]
[1641638975556,0.750787,3214.9,3214.7,1.5]
[1641638975759,1.699287,3214.9,3214.1,1.89479]
[1641638975957,1.699287,3214.9,3213.8,1.5]
[1641638976159,0.264788,3214.8,3213.8,1.5]
[1641638977159,2.00479,3214.2,3213.8,1.5]
[1641638977361,2.00479,3214.5,3213.8,1.5]
[1641638977560,0.264788,3214.2,3213.5,0.4678]
[1641638977760,1.020788,3214.2,3213.5,0.4678]
[1641638978960,4.978452,3214.1,3213.0,1.2865822]
[1641638979160,2.00479,3213.4,3213.2,1.5]
[1641638979964,2.00479,3213.4,3213.3,13.29]
[1641638980163,0.76401069,3214.0,3213.3,14.1212]
[1641638980363,0.76401069,3214.0,3213.7,1.5]
[1641638980566,0.76401069,3214.0,3213.9,1.5]
[1641638981475,0.49651938,3214.1,3213.9,1.5]
[1641638981664,2.00479,3214.6,3213.9,1.5]
[1641638981864,2.00479,3214.6,3214.2,1.5]
[1641638982467,2.00479,3214.6,3214.5,1.5]
[1641638982966,2.87880069,3214.9,3214.5,14.79]
[1641638983167,2.87880069,3214.9,3214.8,1.5]
[1641638983366,2.87880069,3214.9,3214.8,2.1976]
[1641638983567,1.03510059,3215.1,3214.8,15.4876]
[1641638983766,0.00010059,3215.1,3215.0,1.5]
[1641638983966,1.50616008,3215.6,3215.0,14.79]
[1641638984166,1.56844049,3216.3,3215.3,13.29]
[1641638984366,1.5452329,3216.0,3215.8,1.5]
[1641638984567,1.5452329,3216.0,3215.8,15.3791]
[1641638984970,1.5452329,3216.0,3215.8,16.8791]
[1641638985170,1.5452329,3216.0,3215.8,20.88868]
[1641638985371,1.56844049,3216.3,3215.8,20.88868]
[1641638985570,2.51770721,3216.5,3216.2,1.5]
[1641638985772,2.51770721,3216.5,3216.4,1.5]
[1641638985972,0.11,3216.8,3216.4,1.5]
[1641638986171,0.11,3216.8,3216.6,1.5]
[1641638986371,0.11,3216.8,3216.6,0.7027]
[1641638986772,0.11,3216.8,3216.7,1.5]
[1641638986973,2.00479,3217.2,3216.8,13.29]
[1641638987173,2.00479,3217.2,3217.0,14.79]
[1641638987676,2.00279,3217.2,3217.0,14.79]
[1641638987874,2.00279,3217.2,3217.0,1.5]
[1641638988874,2.00279,3217.2,3217.1,0.87489561]
[1641638989076,2.00279,3217.2,3217.1,2.37489561]
[1641638991380,2.00279,3217.2,3217.1,15.66489561]
[1641638991778,2.00279,3217.2,3217.1,2.37489561]
[1641638992578,1.70909,3217.2,3217.1,2.37489561]
[1641638992779,1.70909,3217.2,3217.1,15.66489561]
[1641638993178,1.70909,3217.2,3217.1,2.37489561]
[1641638993879,1.70909,3217.2,3217.1,15.66489561]
[1641638994078,1.70909,3217.2,3217.1,2.37489561]
[1641638995280,1.70909,3217.2,3217.1,1.5]
[1641638996282,0.905575,3217.4,3217.1,1.5]
[1641638996480,0.11,3217.8,3216.7,14.54354658]
[1641638996681,0.11,3217.8,3217.4,1.5]
[1641638996880,0.374788,3217.8,3217.4,0.848]
[1641638997081,0.640787,3217.7,3217.4,0.848]
[1641638997580,0.374788,3217.8,3217.4,0.848]
[1641638997780,0.374788,3217.8,3217.2,2.00479]
[1641638998279,0.374788,3217.8,3217.3,1.5]
[1641638998480,0.374788,3217.8,3217.3,2.1928]
[1641638998681,0.11,3217.8,3217.3,2.1928]
[1641638998881,0.11,3217.8,3217.6,1.5]